[Event "15th Arad Open 2022"]
[Site "Arad"]
[Date "2022.08.09"]
[Round "3.5"]
[White "Stanciu, Alexandru-Ovidiu"]
[Black "Herczeg, Marcell"]
[Result "1-0"]
[ECO "D00"]
[WhiteElo "2326"]
[BlackElo "2044"]
[Annotator "TA"]
[PlyCount "97"]
[EventDate "2022.08.08"]
[EventType "swiss"]
[EventCountry "ROU"]
[SourceTitle "playchess.com"]
[Source "ChessBase"]
[SourceQuality "1"]
[TimeControl "5400+30"]

{[%evp 9,97,13,45,34,52,40,48,0,0,0,14,11,8,-47,11,12,41,12,36,0,18,22,29,31,52,42,56,33,79,0,22,27,28,0,45,9,48,66,97,98,159,127,145,126,158,158,158,151,161,137,245,263,214,57,79,83,81,75,81,79,108,116,108,115,209,164,335,332,526,527,788,777,783,793,740,789,784,773,1773,1512,2396,2269,2096,2068,29985,29983,29987,29988,29986,29986]} 1. d4 {[%emt 0:02:10]} d5 {[%emt 0:00:48]} 2. Bf4 {[%emt 0:00:59]} e6 {[%emt 0:02:41]} 3. e3 {[%emt 0:00:20]} Bd6 {[%emt 0:00:57]} 4. Qg4 {[%emt 0:03:46]} g6 {[%emt 0:08:21]} 5. Qf3 {[%emt 0:01:32] [#]} b6 $146 {[%emt 0:06:38]} ({Predecessor:} 5... Bxf4 6. Qxf4 Qd6 7. Qxd6 cxd6 8. h4 Nf6 9. c4 dxc4 10. Bxc4 d5 11. Bd3 Nc6 {0-1 (45) Atanasov,A (2189)-Sokolovsky,Y (2394) Chess.com INT 2022}) 6. Nc3 {[%emt 0:01:50] D00: 1 d4 d5: Unusual lines.} Ba6 {[%emt 0:07:50]} 7. Bb5+ {[%emt 0:14:40]} c6 {[%emt 0:10:42]} 8. Ba4 {[%emt 0:00:22]} (8. Bxa6 $14 {should be considered.} Nxa6 9. O-O-O) 8... Qc7 {[%emt 0:01:52]} 9. Nh3 {[%emt 0:05:05]} Bxf4 {[%emt 0:07:27]} 10. Nxf4 {[%emt 0:00:18]} Nd7 {[%emt 0:00:35]} 11. O-O-O {[%emt 0:05:35]} (11. e4 $11) 11... O-O-O {[%emt 0:07:59]} (11... b5 $15 12. Bb3 b4) 12. e4 $11 {[%emt 0:03:40]} Ne7 {[%emt 0:05:19]} 13. h4 {[%emt 0:12:50]} Kb8 {[%emt 0:08:19]} 14. Nh3 {[%emt 0:11:34]} Rdf8 {[%emt 0:06:16]} 15. Rhe1 {[%emt 0:03:49]} dxe4 {[%emt 0:03:50]} 16. Nxe4 {[%emt 0:01:53]} h6 {[%emt 0:03:14]} 17. Qa3 {[%emt 0:07:39]} Nd5 {[%emt 0:02:29]} 18. Kb1 {[%emt 0:01:12]} (18. Bxc6 Qxc6 19. Qxa6 Rc8 $15) 18... Rd8 {[%emt 0:06:26]} (18... N5f6 $14 {feels stronger.}) 19. Rd2 {[%emt 0:15:59]} (19. Bb3 $16 Bb7 20. c4) 19... N7f6 {[%emt 0:04:57]} 20. f3 {[%emt 0:01:55][%cal Oa4c6,Bf2f3,Bf3e4,Be4e5][%mdl 32]} (20. Bxc6 $2 Nxe4 21. Rxe4 Qxc6 $19) 20... Bb7 {[%emt 0:01:26]} 21. Red1 {[%emt 0:00:39]} (21. c4 $5 {[%cal Rc4d5]}) 21... Rhe8 {[%emt 0:00:38]} (21... b5 $5 {[%cal Rb5a4]} 22. Nxf6 Nxf6 $11) 22. Nhf2 {[%emt 0:01:34][%cal Bh3f2,Bf2e4,Be4d6][%mdl 32]} (22. c4 $5 {[%cal Rc4d5]}) 22... Nxe4 {[%emt 0:01:01]} 23. fxe4 {[%emt 0:00:32]} Nf6 {[%emt 0:00:34]} 24. e5 {[%emt 0:01:17]} Nd5 {[%emt 0:01:06]} (24... Nd7 $142) 25. Ne4 {[%emt 0:00:07]} Rf8 {[%emt 0:00:47]} 26. Nd6 {[%emt 0:01:37]} h5 {[%emt 0:00:36]} 27. c4 {[%emt 0:00:05][%cal Bc2c4,Bc4c5][%mdl 32]} Ne7 {[%emt 0:00:08]} 28. c5 {[%emt 0:00:09] 0x0.00144d668e2ddp-1022s more active pieces.} f6 {[%emt 0:00:24]} 29. Bb3 {[%emt 0:00:49]} Nd5 {[%emt 0:00:43]} (29... fxe5 $16 {was necessary.} 30. dxe5 (30. Bxe6 exd4 31. Rxd4 Nc8 $14) 30... Nd5) 30. Bxd5 $18 {[%emt 0:00:44]} exd5 {[%emt 0:00:27]} 31. Qg3 $2 {[%emt 0:00:28]} (31. e6 $18) 31... bxc5 {[%emt 0:00:09]} 32. dxc5 {[%emt 0:00:05] [#] e6 is the strong threat. White now steadily converts the win.} fxe5 {[%emt 0:00:34]} 33. Qxe5 {[%emt 0:00:09]} ({Much worse is} 33. Qxg6 e4 $11) 33... Ka8 {[%emt 0:01:09]} 34. Qg5 {[%emt 0:00:58]} Rxd6 {[%emt 0:00:33]} 35. cxd6 {[%emt 0:00:06]} Qxd6 {[%emt 0:00:01]} 36. Re1 {[%emt 0:00:53]} Qb4 {[%emt 0:00:40]} (36... Bc8 $16) 37. Rde2 {[%emt 0:00:15] [#] Black must now prevent Re8+.} a5 $2 {[%emt 0:00:37]} (37... Bc8 {was called for.} 38. Re8 Rxe8 39. Rxe8 Kb7) 38. a3 {[%emt 0:00:24]} ({Don't do} 38. Qxg6 $6 Qxh4 39. a3 Rb8 $18) 38... Qb3 {[%emt 0:00:29]} (38... Qa4 {might work better.} 39. Qxg6 Qxh4) 39. Qxg6 {[%emt 0:00:57]} Rf4 {[%emt 0:00:40]} 40. Qxh5 {[%emt 0:00:00]} Ka7 {[%emt 0:00:00]} 41. Qg5 {[%emt 0:00:00]} Qc4 {[%emt 0:00:00]} 42. Rc2 {[%emt 0:00:00]} Qd4 {[%emt 0:00:00]} 43. h5 {[%emt 0:00:00][%cal Bh4h5,Bh5h6][%mdl 32]} Qa4 {[%emt 0:00:00]} 44. h6 {[%emt 0:00:00] aiming for h7.} Rg4 {[%emt 0:00:00]} 45. Qe3+ {[%emt 0:00:00]} d4 {[%emt 0:00:00]} 46. Qh3 {[%emt 0:00:00]} Bc8 {[%emt 0:00:00]} 47. Qf3 {[%emt 0:00:00] White mates.} Kb6 {[%emt 0:01:56]} 48. b3 {[%emt 0:00:00]} Qb5 {[%emt 0:00:58]} 49. a4 {[%emt 0:00:00] Weighted Error Value: White=0.26 (precise) /Black=0.37} 1-0

[Event "15th Arad Open 2022"]
[Site "Arad"]
[Date "2022.08.09"]
[Round "3.6"]
[White "Ciocani, Iosif"]
[Black "Sedlak, Nikola"]
[Result "0-1"]
[ECO "B61"]
[WhiteElo "2012"]
[BlackElo "2480"]
[Annotator "ChessBase"]
[PlyCount "76"]
[EventDate "2022.08.08"]
[EventType "swiss"]
[EventCountry "ROU"]
[SourceTitle "playchess.com"]
[Source "ChessBase"]
[SourceQuality "1"]
[TimeControl "5400+30"]

1. e4 {[%emt 0:00:02]} c5 {[%emt 0:03:16]} 2. Nf3 {[%emt 0:00:09]} d6 {[%emt 0:00:07]} 3. d4 {[%emt 0:00:05]} cxd4 {[%emt 0:00:07]} 4. Nxd4 {[%emt 0:00:05]} Nf6 {[%emt 0:00:08]} 5. Nc3 {[%emt 0:00:05]} Nc6 {[%emt 0:00:10]} 6. Bg5 {[%emt 0:01:52]} Bd7 {[%emt 0:00:13]} 7. Qd2 {[%emt 0:00:57]} h6 {[%emt 0:00:12]} 8. Bxf6 {[%emt 0:05:04]} gxf6 {[%emt 0:00:10]} 9. Be2 {[%emt 0:02:58]} Rg8 {[%emt 0:01:42]} 10. g3 {[%emt 0:01:31]} Nxd4 {[%emt 0:01:28]} 11. Qxd4 {[%emt 0:00:34]} Qa5 {[%emt 0:00:51]} 12. b4 {[%emt 0:17:56]} Qd8 {[%emt 0:04:42]} 13. Nd5 {[%emt 0:04:42]} Bg7 {[%emt 0:00:34]} 14. Rd1 {[%emt 0:04:54]} f5 {[%emt 0:02:01]} 15. Qe3 {[%emt 0:02:51]} fxe4 {[%emt 0:01:02]} 16. Qxe4 {[%emt 0:02:45]} Kf8 {[%emt 0:01:00]} 17. O-O {[%emt 0:10:12]} e6 {[%emt 0:03:55]} 18. Ne3 {[%emt 0:03:51]} d5 {[%emt 0:01:27]} 19. Qf4 {[%emt 0:09:53]} Rc8 {[%emt 0:03:57]} 20. c4 {[%emt 0:04:12]} d4 {[%emt 0:03:26]} 21. Nc2 {[%emt 0:14:18]} e5 {[%emt 0:02:11]} 22. Qe4 {[%emt 0:00:51]} b5 {[%emt 0:06:39]} 23. f4 {[%emt 0:02:20]} Bc6 {[%emt 0:02:40]} 24. Qf5 {[%emt 0:00:30]} Qd7 {[%emt 0:07:54]} 25. Qxd7 {[%emt 0:03:27]} Bxd7 {[%emt 0:00:06]} 26. fxe5 {[%emt 0:00:32]} bxc4 {[%emt 0:00:52]} 27. Nxd4 {[%emt 0:02:08]} Ke7 {[%emt 0:05:11]} 28. Rc1 {[%emt 0:04:36]} Bxe5 {[%emt 0:02:47]} 29. Nf3 {[%emt 0:00:22]} Bf4 {[%emt 0:02:25]} 30. Rc3 {[%emt 0:00:37]} Be6 {[%emt 0:00:31]} 31. Kf2 {[%emt 0:00:09]} Bc7 {[%emt 0:06:04]} 32. Rfc1 {[%emt 0:01:03]} a5 {[%emt 0:01:53]} 33. a3 {[%emt 0:00:45]} axb4 {[%emt 0:01:30]} 34. axb4 {[%emt 0:00:07]} Bd6 {[%emt 0:00:19]} 35. Bxc4 {[%emt 0:00:44]} Bxb4 {[%emt 0:00:25]} 36. R3c2 {[%emt 0:00:05]} Bf5 {[%emt 0:00:24]} 37. Re2+ {[%emt 0:00:30]} Kf6 {[%emt 0:00:14]} 38. Ne1 {[%emt 0:01:10]} Rg4 {[%emt 0:00:51]} 0-1

[Event "15th Arad Open 2022"]
[Site "Arad"]
[Date "2022.08.09"]
[Round "3.7"]
[White "Tamas, Christian-Arrydan"]
[Black "Secheres, Adrian-Simion"]
[Result "1/2-1/2"]
[ECO "E94"]
[WhiteElo "1913"]
[BlackElo "2360"]
[Annotator "TA"]
[PlyCount "68"]
[EventDate "2022.08.08"]
[EventType "swiss"]
[EventCountry "ROU"]
[SourceTitle "playchess.com"]
[Source "ChessBase"]
[SourceQuality "1"]
[TimeControl "5400+30"]

{[%evp 22,68,0,0,38,31,43,55,46,0,0,0,0,0,0,0,8,0,0,0,0,0,0,0,0,-5,-7,-6,0,1,1,1,19,0,0,0,2,2,2,0,0,0,0,0,0,0,0,0,0]} 1. d4 {[%emt 0:00:04]} Nf6 {[%emt 0:00:18]} 2. c4 {[%emt 0:00:52]} g6 {[%emt 0:01:38]} 3. Nc3 {[%emt 0:00:15]} Bg7 {[%emt 0:00:16]} 4. e4 {[%emt 0:00:20]} d6 {[%emt 0:00:17]} 5. Nf3 {[%emt 0:00:17]} O-O {[%emt 0:00:22]} 6. Be2 {[%emt 0:00:08]} Nbd7 {[%emt 0:01:21]} 7. O-O {[%emt 0:03:12]} e5 {[%emt 0:00:41]} 8. Be3 {[%emt 0:00:44]} c6 {[%emt 0:03:33]} 9. Qc2 {[%emt 0:03:24]} exd4 {[%emt 0:03:26]} 10. Bxd4 {[%emt 0:02:50]} Re8 {[%emt 0:02:29]} 11. Rad1 {[%emt 0:04:53]} Qe7 {[%emt 0:01:23]} 12. Rfe1 {[%emt 0:01:03]} a6 {[%emt 0:08:14] [#] E94: King's Indian: Classical: 6 Be2 e5 7 0-0: Various Black 7th moves.} 13. b4 $146 {[%emt 0:06:22]} ({Predecessor:} 13. h3 b5 14. b4 Bb7 15. Bf1 Rac8 16. Qb3 Bf8 17. e5 Nxe5 18. Bxe5 dxe5 19. c5 Qc7 20. g3 {1-0 (30) Likavsky,T (2486)-Damljanovic,B (2582) Skopje 2012}) 13... b5 {[%emt 0:06:36]} 14. a4 {[%emt 0:00:26]} (14. Bf1 {with more complications.} Bb7 15. a4 bxa4 16. Qxa4 Ng4 17. Bxg7 Kxg7 18. Qa1) 14... a5 {[%emt 0:12:36] White is slightly better.} 15. axb5 {[%emt 0:02:40]} (15. c5 {is interesting.} dxc5 16. bxc5 b4 17. e5) 15... axb4 {[%emt 0:01:26] The position is equal.} 16. bxc6 {[%emt 0:01:28]} bxc3 {[%emt 0:00:10]} 17. cxd7 {[%emt 0:00:05]} Bxd7 {[%emt 0:00:06] [#] Threatens to win with ...Ba4.} 18. Qxc3 {[%emt 0:02:10]} Nxe4 {[%emt 0:06:43]} 19. Qe3 {[%emt 0:01:29]} Qf8 {[%emt 0:08:00]} 20. Bxg7 {[%emt 0:01:06]} Qxg7 {[%emt 0:00:11]} 21. Nd4 {[%emt 0:03:49]} Ba4 {[%emt 0:09:50]} 22. Ra1 {[%emt 0:06:56]} Nc5 {[%emt 0:02:50]} 23. Qc3 {[%emt 0:10:11]} Rab8 {[%emt 0:17:47][%cal Oc5b3] [#] White must now prevent ...Nb3!} 24. Nb5 {[%emt 0:06:28]} Bxb5 {[%emt 0:01:35]} 25. Qxg7+ {[%emt 0:00:08]} Kxg7 {[%emt 0:00:04]} 26. cxb5 {[%emt 0:00:09]} Kf6 {[%emt 0:03:20]} 27. Bc4 {[%emt 0:03:29]} Rxe1+ {[%emt 0:02:52]} 28. Rxe1 $11 {[%emt 0:00:06][%mdl 4096] Endgame KRB-KRN} Rb6 {[%emt 0:03:12]} 29. g3 {[%emt 0:00:54]} Ne6 {[%emt 0:00:29]} 30. Re4 {[%emt 0:01:39]} d5 {[%emt 0:02:29]} 31. Bxd5 {[%emt 0:00:17]} Rxb5 {[%emt 0:00:06]} 32. Bxe6 {[%emt 0:00:09]} fxe6 {[%emt 0:00:05]} 33. h4 {[%emt 0:00:29]} h5 {[%emt 0:00:16]} 34. Kg2 {[%emt 0:00:07]} Ra5 {[%emt 0:00:25] Weighted Error Value: White=0.05 (flawless) /Black=0.04 (flawless)} 1/2-1/2

[Event "15th Arad Open 2022"]
[Site "Arad"]
[Date "2022.08.09"]
[Round "3.8"]
[White "Ardeleanu, Alin"]
[Black "Capragiu, Matei-Stefan"]
[Result "1-0"]
[ECO "C15"]
[WhiteElo "2290"]
[BlackElo "1925"]
[Annotator "TA"]
[PlyCount "69"]
[EventDate "2022.08.08"]
[EventType "swiss"]
[EventCountry "ROU"]
[SourceTitle "playchess.com"]
[Source "ChessBase"]
[SourceQuality "1"]
[TimeControl "5400+30"]

{[%evp 21,69,-15,-17,-11,-6,-11,-14,-5,0,-41,37,21,23,10,51,38,80,74,127,110,102,97,242,181,191,181,191,131,509,439,655,647,6415,6387,6411,6411,6387,6387,6314,6323,6295,6286,5573,5530,3201,2577,2578,2272,1949,1583]} 1. e4 {[%emt 0:00:03]} e6 {[%emt 0:00:09]} 2. d4 {[%emt 0:00:51]} d5 {[%emt 0:00:07]} 3. Nc3 {[%emt 0:00:17]} Bb4 {[%emt 0:00:05]} 4. Nge2 {[%emt 0:01:34]} dxe4 {[%emt 0:00:12]} 5. a3 {[%emt 0:00:05]} Bxc3+ {[%emt 0:00:18]} 6. Nxc3 {[%emt 0:00:03]} Nc6 {[%emt 0:00:06]} 7. Bb5 {[%emt 0:01:46]} Nge7 {[%emt 0:00:19]} 8. Bg5 {[%emt 0:00:35]} f6 {[%emt 0:00:47]} 9. Be3 {[%emt 0:00:06]} O-O {[%emt 0:00:08]} 10. Qd2 {[%emt 0:00:15]} f5 {[%emt 0:00:35]} 11. O-O-O {[%emt 0:00:09]} Nd5 {[%emt 0:07:32] ...f4 is the strong threat.} 12. Nxd5 {[%emt 0:05:09] C15: French: 3 Nc3 Bb4: Unusual White 4th moves.} Qxd5 {[%emt 0:01:37]} 13. c4 {[%emt 0:00:17]} Qd8 {[%emt 0:04:00]} 14. Bxc6 {[%emt 0:37:31] The position is equal.} bxc6 {[%emt 0:00:08] [#]} 15. Bg5 $146 {[%emt 0:00:16][%cal Be3g5,Bg5f4,Bf4e5][%mdl 32]} ({Predecessor:} 15. Bf4 a5 16. a4 Ba6 17. b3 Qe7 18. Qc3 Rfb8 19. Kc2 Rb7 20. Rb1 c5 21. Rhd1 cxd4 22. Qxd4 {0-1 (37) Kabanov,N (2501)-Duzhakov,I (2313) St Petersburg 2012}) 15... Qd6 {[%emt 0:14:32]} (15... Qd7 $15) 16. Bf4 $1 $14 {[%emt 0:01:46][%mdl 1024] White has compensation.} Qe7 {[%emt 0:01:03]} 17. Qa5 {[%emt 0:02:02]} Bb7 {[%emt 0:01:29]} (17... Qh4 {is interesting.} 18. g3 Qh5 19. Bxc7 Qe2) 18. h4 {[%emt 0:05:06][%cal Bh2h4,Bh4h5][%mdl 32]} Rfe8 {[%emt 0:13:58][%cal Oc6c5]} 19. Be5 {[%emt 0:03:57]} Qf7 {[%emt 0:04:49]} (19... Rf8 $142) 20. h5 {[%emt 0:03:40] White is more active.} Qe7 {[%emt 0:02:28]} 21. Rh3 {[%emt 0:16:00]} Qg5+ {[%emt 0:01:44]} (21... Rf8 $16 {might work better.}) 22. Kc2 {[%emt 0:00:18]} f4 {[%emt 0:00:58] Against Rg3} 23. Rb3 $36 {[%emt 0:01:27][%mdl 2048] White is on the roll.} Bc8 {[%emt 0:04:05]} 24. g3 {[%emt 0:08:09]} ({Stronger than} 24. Bxc7 e5 25. Bxe5 e3 26. fxe3 Bf5+ 27. e4 Bxe4+ 28. Kc1 Rad8 $17) ({Better is} 24. Qxc7 $18 Qe7 25. Qxe7 (25. Qxc6 Bd7 $16) 25... Rxe7 26. Bxf4) 24... Rf8 $2 {[%emt 0:02:03][%mdl 8192] [#] A mistake that costs the game.} (24... Qxh5 $16 25. Qxc7 Qf7) 25. gxf4 {[%emt 0:01:49] White is clearly winning.} Rxf4 {[%emt 0:00:21]} (25... Qxh5 $142 26. Qxc7 Qf7 27. Qxc6 Bd7) 26. Rg3 $18 {[%emt 0:01:03]} Rg4 {[%emt 0:01:26]} 27. Rdg1 {[%emt 0:00:49]} Rxg3 {[%emt 0:03:49]} 28. Rxg3 {[%emt 0:00:07]} Qe7 {[%emt 0:00:05]} 29. Rxg7+ {[%emt 0:02:58]} Qxg7 {[%emt 0:00:06]} 30. Bxg7 {[%emt 0:00:06]} Kxg7 {[%emt 0:00:05] KQ-KRB} 31. Qg5+ {[%emt 0:04:52]} Kf7 {[%emt 0:00:17]} 32. h6 {[%emt 0:00:05]} e5 {[%emt 0:00:40]} 33. Qg7+ {[%emt 0:00:06]} Ke6 {[%emt 0:00:09]} 34. Qxe5+ {[%emt 0:00:11]} Kd7 {[%emt 0:00:30]} 35. Qxe4 {[%emt 0:00:35] Weighted Error Value: White=0.18 (very precise) /Black=0.89} 1-0

[Event "15th Arad Open 2022"]
[Site "Arad"]
[Date "2022.08.09"]
[Round "3.9"]
[White "Ionescu, Mihai"]
[Black "Tablan, Matei-Christian"]
[Result "1-0"]
[ECO "E18"]
[WhiteElo "2250"]
[BlackElo "1928"]
[Annotator "TA"]
[PlyCount "129"]
[EventDate "2022.08.08"]
[EventType "swiss"]
[EventCountry "ROU"]
[SourceTitle "playchess.com"]
[Source "ChessBase"]
[SourceQuality "1"]
[TimeControl "5400+30"]

{[%evp 20,129,16,0,15,13,25,5,44,19,41,27,35,25,31,8,19,7,30,10,26,23,40,20,31,32,35,43,37,18,25,22,18,10,11,10,23,26,31,18,19,21,33,25,24,0,35,35,50,43,60,14,21,10,20,0,0,0,0,0,0,0,0,0,0,0,0,0,0,0,0,0,0,0,0,0,0,0,0,0,0,0,0,0,0,0,918,893,850,738,1095,821,646,0,646,0,500,0,547,472,489,517,433,358,569,147,541,484,497,475,29980,29981]} 1. Nf3 {[%emt 0:00:05]} Nf6 {[%emt 0:00:11]} 2. c4 {[%emt 0:00:07]} e6 {[%emt 0:00:07]} 3. g3 {[%emt 0:00:43]} b6 {[%emt 0:00:20]} 4. Bg2 {[%emt 0:00:15]} Bb7 {[%emt 0:00:12]} 5. O-O {[%emt 0:00:18]} Be7 {[%emt 0:00:22]} 6. d4 {[%emt 0:00:33]} O-O {[%emt 0:00:27]} 7. Nc3 {[%emt 0:04:28]} Ne4 {[%emt 0:01:21]} 8. Nxe4 {[%emt 0:01:18]} Bxe4 {[%emt 0:00:07]} 9. Ne1 {[%emt 0:00:15]} Bxg2 {[%emt 0:00:30]} 10. Nxg2 {[%emt 0:00:07]} d6 {[%emt 0:11:52]} 11. e4 {[%emt 0:04:46]} e5 {[%emt 0:22:32] E18: Queen's Indian: Old Main Line (4 g3 Bb7 5 Bg2 Be7 6 0-0 0-0 7 Nc3).} 12. d5 {[%emt 0:06:50] [#]} Na6 $146 {[%emt 0:03:13]} ({Predecessor:} 12... Nd7 13. Rb1 a5 14. b3 Bg5 15. Qg4 Bxc1 16. Rfxc1 g6 17. Rc3 Kh8 18. Nh4 Nc5 {0-1 (48) Goncalves,I (2225)-El Debs,F (2530) Florianopolis 2017}) 13. Qe2 {[%emt 0:06:39]} g6 {[%emt 0:05:25] The position is equal.} 14. Bd2 {[%emt 0:03:00]} Nc5 {[%emt 0:04:48]} 15. b4 {[%emt 0:00:36]} Nd7 {[%emt 0:00:03]} 16. Bc3 {[%emt 0:03:55]} Bf6 {[%emt 0:05:04]} 17. Qb2 {[%emt 0:02:01]} Qe7 {[%emt 0:03:51]} 18. a3 {[%emt 0:03:03]} h6 {[%emt 0:07:35]} 19. Rae1 {[%emt 0:01:43]} Rae8 {[%emt 0:00:37]} 20. Re2 {[%emt 0:01:09]} Kh7 {[%emt 0:03:26]} 21. Qc2 {[%emt 0:01:43]} Bg7 {[%emt 0:03:16]} 22. Ne3 {[%emt 0:06:04]} Kg8 {[%emt 0:05:17]} 23. f3 {[%emt 0:02:11]} Kh7 {[%emt 0:06:35]} 24. h4 {[%emt 0:05:30]} h5 {[%emt 0:06:12]} 25. Bd2 {[%emt 0:00:24]} Bh6 {[%emt 0:03:34]} 26. Rg2 {[%emt 0:01:31]} Rg8 {[%emt 0:05:46]} 27. Qc1 {[%emt 0:03:16]} Bxe3+ {[%emt 0:00:38]} 28. Bxe3 {[%emt 0:00:07]} f5 {[%emt 0:00:05]} 29. Bg5 {[%emt 0:00:52]} Qg7 {[%emt 0:00:48]} 30. Qc2 {[%emt 0:05:33]} Ref8 {[%emt 0:00:43]} 31. Rff2 {[%emt 0:04:28]} fxe4 {[%emt 0:00:19]} 32. fxe4 {[%emt 0:00:35]} (32. Qxe4 {keeps more tension.} a5 33. g4 Nf6 34. Bxf6 Qxf6 35. gxh5 Qf5 36. hxg6+ Rxg6 37. Qxf5 Rxf5 38. Rxg6 Kxg6 39. Rg2+) 32... Rxf2 {[%emt 0:00:42]} 33. Rxf2 {[%emt 0:00:17] Qa4 is the strong threat.} Rf8 {[%emt 0:00:01]} 34. Rxf8 {[%emt 0:01:40]} Qxf8 $14 {[%emt 0:00:08][%mdl 4096] Endgame KQB-KQN} 35. Qf2 {[%emt 0:00:29] Inhibits Qf3.} (35. Qa4 $14 {deserves consideration.} Qc8 36. Qxa7) 35... Qe8 $11 {[%emt 0:01:02]} 36. Kg2 {[%emt 0:00:42]} Kg7 {[%emt 0:00:16]} 37. Qc2 {[%emt 0:00:22]} Nf6 {[%emt 0:00:57]} 38. c5 {[%emt 0:00:58]} bxc5 {[%emt 0:00:30]} 39. bxc5 {[%emt 0:00:15]} Qb5 {[%emt 0:00:32]} 40. cxd6 {[%emt 0:00:00]} cxd6 {[%emt 0:00:00]} 41. Bxf6+ {[%emt 0:32:12]} Kxf6 {[%emt 0:00:00] KQ-KQ} 42. Qf2+ {[%emt 0:00:00]} Kg7 {[%emt 0:00:00]} 43. Qxa7+ {[%emt 0:00:00]} Kg8 {[%emt 0:00:00]} 44. Qe3 {[%emt 0:00:00]} Qc4 {[%emt 0:00:00]} 45. Qf3 {[%emt 0:00:00]} Kg7 {[%emt 0:00:00]} 46. Kh3 {[%emt 0:00:00]} Qc8+ {[%emt 0:00:00]} 47. g4 {[%emt 0:00:00]} hxg4+ {[%emt 0:00:00]} 48. Qxg4 {[%emt 0:00:00]} Qc3+ {[%emt 0:00:00]} 49. Qg3 {[%emt 0:00:00]} Qc8+ {[%emt 0:00:00]} 50. Kh2 {[%emt 0:00:00]} Qc2+ {[%emt 0:01:21]} 51. Qg2 {[%emt 0:00:00]} Qc1 {[%emt 0:00:03]} 52. h5 {[%emt 0:00:00]} Qf4+ $2 {[%emt 0:03:27][%mdl 8192] [#]} (52... g5 $11) 53. Qg3 $1 $18 {[%emt 0:00:00] Hoping for Qxf4.} Qd2+ {[%emt 0:00:02]} 54. Kh3 {[%emt 0:00:00]} g5 {[%emt 0:00:02]} 55. Qf3 {[%emt 0:00:00] Black must now prevent Kg4.} Qe1 {[%emt 0:02:20]} 56. Kg2 $2 {[%emt 0:00:00]} (56. Kg4 $18) 56... Qd2+ {[%emt 0:01:11][%mdl 8192]} (56... Kh6 $11) 57. Kh3 {[%emt 0:00:00] Strongly threatening Kg4.} Qe1 $1 {[%emt 0:00:16]} 58. a4 $2 {[%emt 0:00:00]} (58. Kg4 $18) 58... Kh6 {[%emt 0:00:50][%mdl 8192] [#]} (58... Qh4+ $11 59. Kg2 Qe1) 59. Kg4 $1 {[%emt 0:00:00]} Qg1+ {[%emt 0:00:31]} 60. Kf5 {[%emt 0:00:00]} Qc1 {[%emt 0:01:03] ( -> ...Qc8+)} 61. Ke6 {[%emt 0:10:00] Qf7 would kill now.} Qc8+ {[%emt 0:00:30]} (61... Qf4 {was necessary.} 62. Qh1 Qh4) 62. Kxd6 {[%emt 0:00:30] Threatening mate with Qf7.} Qb8+ $2 {[%emt 0:00:30][%mdl 8192]} (62... Qd8+ $16 {is tougher.} 63. Kxe5 Qe7+ 64. Kd4 Qa7+ 65. Kd3 Qa6+ 66. Ke3 Qa7+ 67. Ke2 Qxa4) 63. Ke7 {[%emt 0:00:30] White threatens d6 and mate.} Qc7+ {[%emt 0:00:30]} 64. Ke6 {[%emt 0:00:30] White wants to mate with Qf7.} Qb6+ {[%emt 0:00:30]} (64... Qc8+ $18 65. Kxe5 Qe8+ 66. Kd6 Qd8+ 67. Kc6 Qc8+ 68. Kb6 Qd8+ 69. Kc6 Qc8+ 70. Kd6 Qb8+ 71. Ke7 Qc7+ 72. Ke6 Qc8+ 73. Ke7 Qc7+ 74. Ke6 Qc8+ 75. Kd6 Qd8+ 76. Kc5 Qc7+ 77. Kb5 Qb7+ 78. Ka5 Qa7+ 79. Kb5 Qd7+ 80. Kc5 Qc7+ 81. Kb5 Qd7+ 82. Kc5 Qc7+) 65. d6 {[%emt 0:00:30] Weighted Error Value: White=0.40/Black=0.66} 1-0